bitfinex-derivatives/quotes_SOLF0:USTF0_20241101
["timestamp","ask_amount","ask_price","bid_price","bid_amount"]
[1730478860951,2.9985,166.79,166.74,2.9993]
[1730478861242,27.19434705,166.82,166.72,5.66]
[1730478861449,27.19434705,166.82,166.73,2.9994]
[1730478861450,2.9986,166.79,166.73,2.9994]
[1730478861653,23.10754705,166.82,166.72,5.66]
[1730478862041,2.9986,166.79,166.74,2.9994]
[1730478862348,23.10754705,166.82,166.72,5.66]
[1730478862540,2.9984,166.8,166.74,2.9992]
[1730478862744,23.10754705,166.82,166.72,5.66]
[1730478863354,23.10754705,166.82,166.73,2.9994]
[1730478864045,2.9987,166.78,166.73,2.9994]
[1730478864950,23.10754705,166.82,166.72,5.66]
[1730478865843,2.9982,166.81,166.76,2.9989]
[1730478866149,2.9982,166.81,166.72,28.76754705]
[1730478866354,2.9982,166.81,166.73,1.37]
[1730478866553,23.10754705,166.85,166.76,2.9989]
[1730478866759,2.9984,166.8,166.76,2.9989]
[1730478867048,4.1969,166.87,166.78,2.9986]
[1730478867247,2.9979,166.83,166.78,2.9986]
[1730478867857,2.9981,166.82,166.77,2.9988]
[1730478868045,4.1969,166.87,166.73,1.37]
[1730478868046,23.10754705,166.85,166.73,1.37]
[1730478868242,23.10754705,166.85,166.73,5.66]
[1730478868243,23.10754705,166.83,166.73,5.66]
[1730478868439,23.10754705,166.79,166.67,25.80334705]
[1730478868738,4.0875,166.78,166.68,5.66]
[1730478868940,2.9998,166.72,166.68,5.66]
[1730478869148,4.0875,166.78,166.68,5.66]
[1730478869953,2.999,166.77,166.71,2.9999]
[1730478870154,2.999,166.77,166.68,5.66]
[1730478870655,4.0875,166.78,166.68,5.66]
[1730478870948,4.0875,166.78,166.68,5.64]
[1730478871156,23.10754705,166.76,166.62,24.48624705]
[1730478871351,23.10754705,166.76,166.66,5.64]
[1730478871655,2.999,166.77,166.67,23.10754705]
[1730478872055,4.0875,166.78,166.67,23.10754705]
[1730478872548,7.0862,166.78,166.67,23.10754705]
[1730478872941,5.7549,166.78,166.73,2.9995]
[1730478873141,23.10754705,166.82,166.7,23.10754705]
[1730478873357,1.3013,166.81,166.7,23.10754705]
[1730478873546,1.3013,166.81,166.72,2.9997]
[1730478873741,2.9988,166.78,166.72,2.9997]
[1730478874151,2.6575,166.84,166.75,2.9992]
[1730478874354,2.9984,166.8,166.75,2.9992]
[1730478875257,2.9985,166.79,166.75,2.9992]
[1730478875752,2.998,166.82,166.77,2.9987]
[1730478875956,2.6575,166.84,166.73,5.64]
[1730478876350,2.9983,166.81,166.76,2.999]
[1730478877658,2.6575,166.84,166.73,5.64]
[1730478878147,2.9985,166.8,166.75,2.9992]
[1730478878342,2.6575,166.84,166.73,5.64]
[1730478878549,2.6575,166.84,166.7,26.10764705]
[1730478878856,23.10754705,166.81,166.71,5.64]
[1730478879355,23.10754705,166.79,166.69,5.64]
[1730478879558,1.3113,166.78,166.69,5.64]
[1730478879753,1.3113,166.78,166.68,5.64]
[1730478881746,3.0,166.71,166.68,8.6404]
[1730478883060,3.0,166.71,166.68,5.64]
[1730478883857,3.0,166.71,166.54,30.66520059]
[1730478883858,23.10754705,166.73,166.6,48.88]
[1730478884063,2.6804,166.72,166.6,48.88]
[1730478884462,3.0006,166.68,166.63,3.0013]
[1730478884649,2.6804,166.72,166.63,3.0013]
[1730478885263,3.0008,166.67,166.63,3.0013]
[1730478885857,3.0008,166.67,166.6,48.88]
[1730478885858,3.0008,166.67,166.62,3.0015]
[1730478886057,3.0012,166.64,166.6,48.88]
[1730478886467,23.10754705,166.7,166.62,3.0015]
[1730478886663,2.6804,166.72,166.6,5.64]
[1730478886864,23.10754705,166.75,166.62,23.10754705]
[1730478887066,23.10754705,166.75,166.63,2.7079]
[1730478887672,2.9998,166.72,166.64,23.10754705]
[1730478887871,2.9998,166.72,166.64,24.49144705]
[1730478888468,2.9998,166.72,166.66,3.0007]
[1730478888771,2.9999,166.71,166.66,3.0007]
[1730478889772,2.9999,166.71,166.64,24.49144705]
[1730478889773,3.0003,166.69,166.64,4.385]
[1730478891873,23.10754705,166.76,166.64,1.3839]
[1730478892466,2.6706,166.77,166.65,23.10754705]
[1730478892972,2.9999,166.72,166.67,3.0006]
[1730478893174,2.9999,166.72,166.67,8.6406]
[1730478893772,3.0001,166.7,166.67,5.64]
[1730478894566,3.0005,166.68,166.67,5.64]
[1730478895273,3.0011,166.65,166.62,5.64]
[1730478895676,23.10754705,166.73,166.62,5.64]
[1730478895878,3.0002,166.7,166.62,28.74754705]
[1730478896472,3.0002,166.7,166.65,3.0009]
[1730478898273,23.10754705,166.75,166.65,3.0009]
[1730478898481,3.0002,166.7,166.65,3.0009]
[1730478899482,23.10754705,166.72,166.59,23.10754705]
[1730478899680,3.0009,166.66,166.61,3.0016]
[1730478900379,23.10754705,166.72,166.6,5.64]
[1730478900575,23.10754705,166.7,166.58,1.3868]
[1730478900781,23.10754705,166.75,166.62,23.10754705]
[1730478900969,2.6706,166.77,166.6,5.64]
[1730478900970,2.9998,166.72,166.68,3.0004]
[1730478901166,2.6706,166.77,166.64,23.10754705]
[1730478901775,2.6706,166.77,166.64,26.17799962]
[1730478901977,1.3113,166.78,166.67,23.10754705]
[1730478902176,1.3113,166.78,166.7,23.10754705]
[1730478902781,1.3113,166.78,166.73,2.9995]
[1730478902782,2.9987,166.78,166.73,2.9995]
[1730478903075,23.10754705,166.76,166.58,23.10754705]
[1730478903280,29.10464705,166.79,166.58,23.10754705]
[1730478903281,23.10754705,166.72,166.59,7.0163]
[1730478903675,3.0007,166.67,166.61,3.0016]
[1730478903880,27.00814705,166.75,166.61,23.10754705]
[1730478904386,27.00814705,166.75,166.64,3.0011]
[1730478904979,3.0004,166.69,166.64,3.0011]
[1730478905886,27.00814705,166.75,166.64,3.0011]
[1730478906186,3.0005,166.68,166.64,3.0011]
[1730478906375,3.0005,166.68,166.59,7.0163]
[1730478906376,23.10754705,166.72,166.59,7.0163]
[1730478906786,23.10754705,166.7,166.6,5.64]
[1730478906984,3.0013,166.64,166.6,5.64]
[1730478907278,3.9006,166.75,166.6,5.64]
[1730478907279,3.9006,166.75,166.63,23.10754705]
[1730478908486,3.0001,166.7,166.63,23.10754705]
[1730478908781,23.10754705,166.73,166.6,23.10754705]
[1730478908979,3.0007,166.67,166.63,5.64]
[1730478909185,23.10754705,166.7,166.63,5.64]
[1730478909586,3.0009,166.66,166.63,5.64]
[1730478909884,23.10754705,166.74,166.63,5.64]
[1730478910080,3.0006,166.68,166.64,3.001]
[1730478910385,23.10754705,166.74,166.63,5.64]
[1730478910974,3.0004,166.69,166.65,3.0009]
[1730478911174,23.10754705,166.74,166.63,5.64]
[1730478911374,3.0012,166.64,166.63,5.64]
[1730478911584,23.10754705,166.68,166.58,5.64]
[1730478911784,3.9345,166.67,166.58,5.64]
[1730478911989,3.0017,166.61,166.58,8.6421]
[1730478912188,3.9345,166.67,166.58,8.6421]
[1730478912573,3.0014,166.63,166.59,3.002]
[1730478913785,3.9345,166.67,166.58,5.64]
[1730478913987,23.10754705,166.65,166.55,1.393]
[1730478914176,23.10754705,166.65,166.55,5.64]
[1730478914487,6.92495269,166.67,166.55,5.64]
[1730478914488,23.10754705,166.63,166.55,5.64]
[1730478915084,23.10754705,166.63,166.55,8.6426]
[1730478915384,23.10754705,166.63,166.55,5.64]
[1730478915776,23.10754705,166.63,166.43,23.10754705]
[1730478915777,23.10754705,166.57,166.43,23.10754705]
[1730478916082,3.0034,166.52,166.47,3.0042]
[1730478916286,23.10754705,166.57,166.44,8.4338]
[1730478916489,23.10754705,166.54,166.44,8.4338]
[1730478916689,27.10414705,166.56,166.44,8.4338]
[1730478917281,27.10414705,166.56,166.48,3.004]
[1730478917483,27.10414705,166.56,166.44,8.4338]
[1730478917888,23.10754705,166.59,166.46,23.10754705]
[1730478918089,2.6227,166.61,166.48,23.10754705]
[1730478918278,3.002,166.6,166.55,3.0027]
[1730478918477,25.73024705,166.65,166.55,3.0027]
[1730478918882,25.73024705,166.65,166.53,5.64]
[1730478919184,3.0019,166.61,166.56,3.0026]
[1730478919787,3.0017,166.62,166.56,3.0026]
[1730478919990,2.6227,166.65,166.56,3.0026]
[1730478920188,2.6227,166.65,166.55,3.0028]
[1730478920781,3.0015,166.62,166.55,3.0028]
[1730478920985,2.6227,166.65,166.54,23.10754705]
[1730478921181,2.6227,166.65,166.57,3.0023]
[1730478921486,2.6227,166.65,166.54,23.10754705]
[1730478921689,1.2893,166.66,166.55,1.3794]
[1730478921884,1.2893,166.66,166.59,3.0019]
[1730478922281,3.0012,166.64,166.59,3.0019]
[1730478922789,23.10754705,166.68,166.56,23.10754705]
[1730478922985,2.7356,166.72,166.62,3.0015]
[1730478922986,3.0007,166.67,166.62,3.0015]
[1730478923190,24.49074705,166.71,166.61,5.64]
[1730478923689,4.1153,166.78,166.62,23.10754705]
[1730478924186,3.0001,166.7,166.65,3.0008]
[1730478924901,23.10754705,166.72,166.57,23.10754705]
[1730478925093,4.1153,166.78,166.58,5.64]
[1730478925094,23.10754705,166.67,166.58,5.64]
[1730478925594,3.0017,166.62,166.58,5.64]
[1730478925796,1.3295,166.66,166.58,5.64]
[1730478925994,3.0016,166.62,166.58,5.64]
[1730478926184,2.7858,166.69,166.58,5.64]
[1730478926690,2.7858,166.69,166.6,3.0018]
[1730478926691,3.001,166.66,166.6,3.0018]
[1730478927286,3.0018,166.61,166.58,5.64]
[1730478927583,23.10754705,166.65,166.58,5.64]
[1730478928088,3.0016,166.62,166.58,5.64]
[1730478928285,23.10754705,166.68,166.58,5.64]
[1730478928981,3.001,166.65,166.58,5.64]
[1730478929582,2.7858,166.69,166.58,5.64]
[1730478930387,3.0008,166.67,166.61,3.0016]
[1730478931890,2.7858,166.69,166.61,3.0016]
[1730478932091,2.7858,166.69,166.6,3.0018]
[1730478932293,2.7858,166.69,166.58,5.64]
[1730478932488,23.10754705,166.65,166.58,5.64]
[1730478932690,23.10754705,166.62,166.53,5.62]
[1730478932887,1.3805,166.61,166.52,48.84]
[1730478933086,3.9689,166.61,166.52,48.84]
[1730478933983,3.9689,166.61,166.55,3.0028]
[1730478933984,3.002,166.6,166.55,3.0028]
[1730478934390,3.002,166.6,166.52,48.84]
[1730478934391,3.9689,166.61,166.52,48.84]
[1730478934592,3.0023,166.58,166.53,3.0031]
[1730478935085,3.9689,166.61,166.52,48.84]
[1730478935286,3.0025,166.57,166.52,51.8433]
[1730478935494,3.9689,166.61,166.52,43.22]
[1730478935793,3.9689,166.61,166.49,5.62]
[1730478935794,3.0029,166.55,166.49,5.62]
[1730478935998,23.10754705,166.59,166.49,5.62]
[1730478936297,23.10754705,166.57,166.49,5.62]
[1730478936593,23.10754705,166.54,166.49,5.62]
[1730478936797,1.332,166.53,166.49,5.62]
[1730478936992,1.332,166.53,166.41,1.3358]
[1730478937192,1.332,166.53,166.42,5.62]
[1730478937193,2.6282,166.52,166.42,5.62]
[1730478937498,1.332,166.53,166.43,23.10754705]
[1730478937694,23.10754705,166.57,166.43,24.41964705]
[1730478938002,3.0031,166.54,166.49,3.0039]
[1730478938202,23.10754705,166.57,166.43,24.41964705]
[1730478938398,4.0127,166.6,166.43,24.41964705]
[1730478938399,23.10754705,166.54,166.43,24.41964705]
[1730478938700,3.0037,166.5,166.43,24.41964705]
[1730478938890,23.10754705,166.54,166.43,24.41964705]
[1730478939090,23.10754705,166.54,166.42,5.62]
[1730478939287,23.10754705,166.52,166.41,1.3358]
[1730478939492,23.10754705,166.52,166.4,44.5022]
[1730478939493,4.0753,166.51,166.42,5.62]
[1730478939693,3.0046,166.46,166.42,5.62]
[1730478939899,23.10754705,166.49,166.42,5.62]
[1730478940401,27.18284705,166.51,166.42,5.62]
[1730478940990,27.18284705,166.51,166.44,3.0048]
[1730478941390,27.18284705,166.51,166.43,3.0049]
[1730478941586,4.0753,166.51,166.42,5.62]
[1730478942193,4.0753,166.51,166.42,8.625]
[1730478942417,23.10754705,166.5,166.42,5.62]
[1730478942702,4.0753,166.51,166.43,3.0049]
[1730478943204,4.0753,166.51,166.42,5.62]
[1730478943405,4.0753,166.51,166.45,3.0045]
[1730478943594,3.0042,166.48,166.42,5.62]
[1730478943910,4.0753,166.51,166.43,3.0048]
[1730478944197,3.0039,166.49,166.43,3.0048]
[1730478944500,3.0039,166.49,166.44,3.0048]
[1730478944992,4.3882,166.51,166.42,5.62]
[1730478945197,5.62,166.56,166.29,23.10754705]
[1730478945198,23.10754705,166.45,166.29,23.10754705]
[1730478945492,23.10754705,166.37,166.23,1.3822]
[1730478945695,23.10754705,166.33,166.23,4.36356875]
[1730478946088,23.10754705,166.33,166.15,6.0201]
[1730478946089,23.10754705,166.27,166.18,3.07391679]
[1730478946300,23.10754705,166.27,166.19,5.62]
[1730478946607,37.5507629,166.28,166.21,3.0089]
[1730478946990,37.5507629,166.31,166.19,5.62]
[1730478947698,40.5579629,166.31,166.24,3.0084]
[1730478947891,40.5579629,166.31,166.19,5.62]
[1730478947892,37.5507629,166.31,166.19,5.62]
[1730478948097,37.5507629,166.28,166.19,5.62]
[1730478948495,40.5584629,166.28,166.2,3.009]
[1730478948890,40.5584629,166.28,166.19,5.62]
[1730478949093,37.5507629,166.28,166.19,5.62]
[1730478949896,37.5507629,166.28,166.23,3.0086]
[1730478950405,37.5507629,166.28,166.14,37.5507629]
[1730478950406,37.5507629,166.25,166.13,1.2968]
[1730478950600,37.5507629,166.25,166.14,5.62]
[1730478951700,3.0087,166.23,166.15,3.0099]
[1730478951905,37.5507629,166.22,166.15,3.0099]
[1730478952310,40.5595629,166.22,166.15,8.63]
[1730478952504,37.5507629,166.22,166.11,1.3571]
[1730478952805,37.5507629,166.22,165.84,8.45521607]
[1730478952806,37.5507629,166.22,166.12,7.0022]
[1730478953505,3.0093,166.2,166.13,3.0103]
[1730478953700,37.5507629,166.22,166.12,5.62]
[1730478953900,37.5507629,166.22,166.15,3.01]
[1730478954103,37.5507629,166.22,166.12,5.62]
[1730478954704,3.0091,166.21,166.14,3.0101]
[1730478954906,37.5507629,166.22,166.12,5.62]
[1730478955408,37.5507629,166.25,166.12,5.62]
[1730478955611,37.5507629,166.25,166.13,1.3129]
[1730478955804,40.5591629,166.25,166.13,1.3129]
[1730478956004,40.5591629,166.25,166.14,1.367]
[1730478956005,37.5507629,166.25,166.14,1.367]
[1730478956403,37.5507629,166.22,166.12,5.62]
[1730478957309,1.3714,166.21,166.12,5.62]
[1730478957509,4.3805,166.21,166.12,5.62]
[1730478958209,3.0092,166.2,166.14,3.0101]
[1730478958606,1.3714,166.21,166.12,5.62]
[1730478960605,1.3714,166.21,166.15,3.0099]
[1730478960807,4.3804,166.21,166.15,3.0099]
[1730478961217,1.3714,166.21,166.13,8.6102]
[1730478961411,37.5507629,166.2,166.13,5.6]
[1730478961607,1.3714,166.21,166.13,5.6]
[1730478961808,1.3714,166.21,166.16,3.0097]
[1730478962208,1.3714,166.21,166.13,5.6]
[1730478962611,37.5507629,166.19,166.13,5.6]
[1730478963110,1.2822,166.18,166.13,5.6]
[1730478963312,3.0098,166.17,166.11,3.0106]
[1730478964018,1.2822,166.18,166.1,48.86]
[1730478964209,1.2822,166.18,166.13,3.0104]
[1730478964517,37.5507629,166.24,166.11,37.5507629]
[1730478964819,37.5507629,166.24,166.19,3.0093]
[1730478965018,37.5507629,166.24,166.17,5.6]
[1730478965317,37.5507629,166.24,166.19,3.0093]
[1730478965523,1.2822,166.25,166.17,5.6]
[1730478965908,1.2822,166.25,166.19,3.0092]
[1730478966118,1.2857,166.26,166.17,5.6]
[1730478966327,37.5507629,166.25,166.17,5.6]
[1730478966511,37.5507629,166.25,166.17,8.6095]
[1730478966710,37.5507629,166.25,166.17,5.6]
[1730478967920,40.5591629,166.25,166.18,3.0093]
[1730478968116,2.5648,166.26,166.17,5.6]
[1730478968518,3.0085,166.24,166.18,3.0094]
[1730478968818,3.0085,166.24,166.17,5.6]
[1730478969016,26.122416,166.25,166.19,3.0092]
[1730478969608,23.114116,166.25,166.17,5.6]
[1730478969813,1.2791,166.26,166.17,5.6]
[1730478970522,1.2791,166.26,166.22,3.0086]
[1730478970906,1.2791,166.26,166.17,5.6]
[1730478971524,24.431116,166.28,166.17,5.6]
[1730478971716,24.431116,166.28,166.24,3.0083]
[1730478972224,1.393,166.3,166.26,3.0079]
[1730478972612,1.393,166.3,166.28,3.0076]
[1730478972816,1.2897,166.31,166.24,5.6]
[1730478973322,23.114116,166.34,166.24,5.6]
[1730478973527,1.393,166.35,166.24,5.6]
[1730478976729,3.0066,166.34,166.28,3.0076]
[1730478977020,1.3976,166.36,166.28,3.0076]
[1730478977614,1.3976,166.36,166.21,23.114116]
[1730478977615,3.0071,166.31,166.21,23.114116]
[1730478977823,23.114116,166.34,166.22,5.6]
[1730478978128,1.3036,166.33,166.22,5.6]
[1730478978424,23.114116,166.32,166.22,5.6]
[1730478978620,23.114116,166.29,166.22,5.6]
[1730478978926,3.0086,166.24,166.18,3.0093]
[1730478979327,23.114116,166.26,166.17,5.6]
[1730478979519,2.7543,166.28,166.23,3.0085]
[1730478979818,2.7543,166.28,166.17,5.6]
[1730478979819,23.114116,166.31,166.18,23.114116]
[1730478980024,3.0075,166.3,166.24,3.0083]
[1730478980213,23.114116,166.31,166.24,3.0083]
[1730478980420,23.114116,166.31,166.18,23.114116]
[1730478981111,23.114116,166.31,166.21,23.114116]
[1730478981317,1.3886,166.32,166.21,23.114116]
[1730478981528,1.3886,166.32,166.22,1.2882]
[1730478981715,3.007,166.33,166.25,3.0082]
[1730478981921,1.3657,166.35,166.26,5.6]
[1730478982119,23.114116,166.39,166.26,28.714116]
[1730478982523,3.0059,166.39,166.26,28.714116]
[1730478982725,1.3194,166.41,166.26,28.714116]
[1730478982726,23.114116,166.4,166.26,28.714116]
[1730478983121,23.114116,166.37,166.29,3.0075]
[1730478983523,23.114116,166.34,166.22,1.2882]
[1730478983829,23.114116,166.34,166.21,23.114116]
[1730478983830,23.114116,166.31,166.2,5.6]
[1730478984028,1.3366,166.3,166.2,5.6]
[1730478984522,1.3366,166.3,166.2,28.714116]
[1730478985424,1.3366,166.3,166.24,3.0083]
[1730478986130,3.0077,166.28,166.2,5.6]
[1730478986427,1.3366,166.3,166.2,5.6]
[1730478986824,3.0079,166.27,166.21,3.0089]
[1730478987025,1.3366,166.3,166.21,3.0089]
[1730478987326,3.0079,166.27,166.21,3.0089]
[1730478987531,1.3366,166.3,166.22,5.6]
[1730478987729,25.758316,166.33,166.22,5.6]
[1730478987932,28.765216,166.33,166.27,3.0077]
[1730478988234,2.6442,166.33,166.22,5.6]
[1730478988422,3.0071,166.32,166.26,3.008]
[1730478988821,25.758316,166.33,166.22,5.6]
[1730478989028,23.114116,166.3,166.22,5.6]
[1730478989224,3.008,166.27,166.22,5.6]
[1730478989523,3.008,166.27,166.17,23.114116]
[1730478989732,3.0079,166.27,166.21,3.0088]
[1730478990224,1.3762,166.29,166.18,5.6]
[1730478990724,3.0079,166.28,166.22,3.0087]
[1730478991426,1.3762,166.29,166.18,5.6]
[1730478992027,1.3762,166.29,166.2,23.114116]
[1730478992335,1.3762,166.29,166.18,5.6]
[1730478992726,1.3762,166.29,166.17,23.114116]
[1730478992931,23.114116,166.28,166.18,5.6]
[1730478993241,3.0084,166.25,166.18,5.6]
[1730478993526,3.0078,166.28,166.22,3.0087]
[1730478993720,1.3762,166.29,166.18,5.6]
[1730478994535,3.0082,166.26,166.21,3.0088]
[1730478994737,1.3762,166.29,166.21,3.0088]
[1730478994934,23.114116,166.28,166.21,3.0088]
[1730478996332,23.114116,166.28,166.19,5.6]
[1730478997135,1.3762,166.29,166.19,5.6]
[1730478997329,3.0082,166.26,166.21,3.0089]
[1730478999330,3.0084,166.25,166.2,3.0091]
[1730478999530,23.114116,166.28,166.19,5.6]
[1730478999944,23.114116,166.28,166.21,3.0088]
[1730479000231,23.114116,166.28,166.19,5.6]
[1730479000430,3.0086,166.24,166.19,5.6]
[1730479001335,23.114116,166.28,166.19,5.6]
[1730479001526,1.3762,166.29,166.19,5.6]
[1730479001926,23.114116,166.28,166.19,5.6]
[1730479002332,23.114116,166.28,166.18,3.0094]
[1730479002636,3.0085,166.24,166.18,5.6]
[1730479003635,23.114116,166.28,166.18,5.6]
[1730479004340,3.0083,166.25,166.2,3.0091]
[1730479004531,23.114116,166.28,166.18,5.6]
[1730479004726,1.3762,166.29,166.12,1.319]
[1730479004932,1.3762,166.29,166.11,25.807916]
[1730479004933,23.114116,166.25,166.13,5.6]
[1730479005129,7.3913,166.29,166.1,43.26]
[1730479005130,23.114116,166.22,166.1,43.26]
[1730479005336,1.308,166.21,166.12,5.6]
[1730479005834,3.0096,166.18,166.12,8.6105]
[1730479006339,3.0101,166.15,166.1,46.2709]
[1730479006539,23.114116,166.17,166.09,5.6]
[1730479006726,1.308,166.21,166.09,5.6]
[1730479006927,3.0094,166.19,166.09,5.6]
[1730479007740,3.0095,166.18,166.13,3.0104]
[1730479008639,3.0095,166.18,166.09,5.6]
[1730479008835,3.0095,166.18,166.12,3.0105]
[1730479009138,1.308,166.21,166.09,5.6]
[1730479009340,1.308,166.21,166.09,6.9958]
[1730479009642,1.308,166.21,166.1,23.114116]
[1730479010033,3.0093,166.2,166.13,3.0103]
[1730479010236,3.0093,166.2,166.1,23.114116]
[1730479010639,1.308,166.21,166.1,23.114116]
[1730479011243,4.3171,166.21,166.1,23.114116]
[1730479011939,4.3171,166.21,166.15,3.01]
[1730479012839,2.6899,166.24,166.09,6.9958]
[1730479012840,2.6899,166.24,166.16,5.6]
[1730479013233,3.0082,166.26,166.2,3.009]
[1730479013429,1.3471,166.27,166.16,5.6]
[1730479014142,3.0085,166.24,166.18,3.0094]
[1730479014439,1.3471,166.27,166.16,5.6]
[1730479014638,23.114116,166.25,166.16,5.6]
[1730479014941,3.0088,166.23,166.17,3.0095]
[1730479015239,23.114116,166.25,166.17,3.0095]
[1730479016138,3.0088,166.23,166.17,3.0095]
[1730479016338,3.0088,166.23,166.16,5.6]
[1730479016636,3.0088,166.23,166.18,3.0094]
[1730479017143,23.114116,166.25,166.16,8.5897]
[1730479017337,23.114116,166.23,166.16,5.58]
[1730479017730,3.0094,166.19,166.16,5.58]
[1730479018442,3.0092,166.2,166.16,5.58]
[1730479019341,3.0094,166.19,166.16,5.58]
[1730479019841,23.114116,166.2,166.13,5.58]
[1730479020141,3.0095,166.18,166.13,8.5904]
[1730479021045,23.114116,166.2,166.13,5.58]
[1730479021245,23.114116,166.18,166.06,23.114116]
[1730479021635,23.114116,166.18,166.06,5.58]
[1730479021833,23.114116,166.23,166.09,23.114116]
[1730479022133,23.114116,166.31,166.18,23.114116]
[1730479022332,23.114116,166.29,166.19,5.58]
[1730479022738,23.114116,166.26,166.19,5.58]
[1730479023142,3.0086,166.23,166.19,5.58]
[1730479023453,23.114116,166.26,166.19,5.58]
[1730479024336,3.0084,166.24,166.19,5.58]
[1730479024538,23.114116,166.24,166.12,24.503216]
[1730479024740,1.3744,166.23,166.14,5.58]
[1730479025137,23.114116,166.21,166.14,5.58]
[1730479025340,3.0099,166.16,166.08,8.5913]
[1730479025542,1.2865,166.2,166.08,5.58]
[1730479025745,23.114116,166.18,166.08,5.58]
[1730479025941,1.4044,166.17,166.08,5.58]
[1730479027645,4.4142,166.17,166.08,5.58]
[1730479027844,1.4044,166.17,166.08,5.58]
[1730479028255,4.4141,166.17,166.09,3.0111]
[1730479028549,1.4044,166.17,166.04,27.073416]
[1730479028854,3.0102,166.14,166.07,5.58]
[1730479029038,1.4044,166.17,166.07,5.58]
[1730479029438,3.0102,166.14,166.07,5.58]
[1730479029755,3.0102,166.14,166.07,8.5914]
[1730479030452,1.4044,166.17,166.07,5.58]
[1730479030650,1.4044,166.17,166.07,28.694116]
[1730479031150,1.4044,166.17,166.08,8.5913]
[1730479031151,3.0101,166.15,166.08,8.5913]
[1730479032254,3.0104,166.14,166.08,5.58]
[1730479032456,1.4044,166.17,166.08,5.58]
[1730479032855,3.0107,166.12,166.08,5.58]
[1730479034252,3.0103,166.14,166.08,5.58]
[1730479034649,1.4044,166.17,166.08,5.58]
[1730479035557,3.0105,166.13,166.08,5.58]
[1730479035870,1.4044,166.17,166.08,5.58]
[1730479036161,3.0099,166.16,166.1,3.0109]
[1730479036760,1.4044,166.17,166.1,3.0109]
[1730479036962,3.0099,166.16,166.1,3.0109]
[1730479037257,1.4044,166.17,166.09,3.0111]
[1730479037464,23.114116,166.15,166.04,2.674]
[1730479037758,1.3949,166.14,166.04,8.5919]
[1730479037961,1.3949,166.14,166.01,23.114116]
[1730479038159,1.3949,166.14,166.03,3.0122]
[1730479038660,3.0108,166.11,166.03,3.0122]
[1730479038860,1.3949,166.14,166.03,3.0122]
[1730479039062,1.3949,166.14,166.03,8.5922]
[1730479039259,23.114116,166.12,165.98,23.114116]
[1730479039460,23.114116,166.12,165.92,3.9109]
[1730479039461,23.114116,166.01,165.92,3.9109]
[1730479039651,23.114116,165.98,165.85,23.114116]
[1730479039852,23.114116,165.98,165.88,3.0148]
[1730479040061,2.614,166.0,165.85,26.09345437]
[1730479040261,3.014,165.94,165.86,1.10739621]
[1730479040465,23.114116,165.98,165.85,23.114116]
[1730479040759,3.0147,165.9,165.83,3.9109]
[1730479040965,3.0147,165.9,165.83,9.4909]
[1730479041159,23.114116,165.95,165.83,9.4909]
[1730479041559,23.114116,165.95,165.86,3.0151]
[1730479041756,3.0138,165.95,165.86,3.0151]
[1730479041962,23.114116,165.98,165.83,9.4909]
[1730479042268,23.114116,165.95,165.83,8.1882]
[1730479042468,23.114116,165.92,165.83,8.1882]
[1730479042671,23.114116,165.96,165.83,6.9033]
[1730479042969,3.0143,165.92,165.83,9.9191]